bitfinex/quotes_ETHUSD_20250126
["timestamp","ask_amount","ask_price","bid_price","bid_amount"]
[1737906472191,0.16572,3314.5,3314.3,3.01715]
[1737906472368,3.01677,3314.8,3314.3,3.01715]
[1737906472568,0.16572,3314.4,3314.3,3.01715]
[1737906472900,3.01677,3314.8,3314.4,0.22567902]
[1737906473065,3.84764334,3314.8,3314.4,0.22567902]
[1737906473262,3.01677,3314.8,3314.4,0.22567902]
[1737906474218,5.35,3314.9,3314.5,0.22567902]
[1737906474417,8.3667,3314.9,3314.5,1.04827902]
[1737906475701,8.3667,3314.9,3314.6,0.22567902]
[1737906476403,5.35,3314.9,3314.6,0.22567902]
[1737906477128,5.35,3314.9,3314.5,0.8226]
[1737906478917,5.35,3314.9,3314.5,3.83963]
[1737906479304,5.35,3314.9,3314.5,0.8226]
[1737906481911,5.35,3314.9,3314.5,3.83958]
[1737906482213,5.35,3314.9,3314.5,4.525251]
[1737906484521,8.35,3315.0,3314.5,4.525251]
[1737906484696,8.35,3315.0,3314.5,3.83958]
[1737906485017,0.1657675,3314.9,3314.5,3.83958]
[1737906496228,0.1657675,3314.9,3314.5,0.8226]
[1737906500926,0.1657675,3314.9,3313.2,5.35]
[1737906500927,3.1825175,3314.9,3314.3,0.8001]
[1737906501132,3.01696,3314.6,3314.3,0.8001]
[1737906501517,0.16528527,3314.5,3314.3,0.8001]
[1737906503047,0.16528527,3314.5,3314.0,3.83194]
[1737906505571,0.16528527,3314.5,3314.1,3.01739]
[1737906506147,0.16528527,3314.5,3314.0,3.83192]
[1737906506322,0.16528527,3314.5,3314.1,3.0174]
[1737906506912,8.36687,3314.7,3314.1,3.0174]
[1737906507123,0.16545939,3314.4,3314.1,3.0174]
[1737906507302,8.36687,3314.7,3314.1,3.0174]
[1737906507559,0.16545939,3314.3,3314.1,3.0174]
[1737906507711,8.36687,3314.7,3314.1,3.0174]
[1737906507912,0.16545939,3314.2,3314.1,3.0174]
[1737906508147,8.36687,3314.7,3314.1,3.0174]
[1737906508324,0.16545939,3314.2,3314.1,3.0174]
[1737906508659,8.36687,3314.7,3314.2,3.0173]
[1737906512175,5.35,3314.7,3314.2,3.0173]
[1737906515155,0.16545939,3314.6,3314.2,3.0173]
[1737906515571,0.16545939,3314.6,3314.2,6.03455]
[1737906515752,0.16545939,3314.6,3314.2,3.01725]
[1737906516506,0.16545939,3314.6,3314.3,3.0172]
[1737906516665,0.16545939,3314.6,3314.4,3.01713]
[1737906516999,0.16545939,3314.6,3314.5,3.84564]
[1737906517151,5.35,3315.1,3314.5,0.85876721]
[1737906517354,0.16539081,3315.0,3314.8,3.0167]
[1737906517555,5.35,3315.3,3314.9,3.84528]
[1737906517797,0.16549633,3315.2,3314.9,3.84528]
[1737906518005,6.26686,3315.3,3314.9,3.84528]
[1737906518006,5.35,3315.3,3314.9,3.84528]
[1737906518153,0.16560187,3315.1,3314.9,3.84528]
[1737906518356,5.35,3315.3,3314.9,3.84528]
[1737906518583,0.16560187,3315.2,3314.9,3.84528]
[1737906518784,5.35,3315.3,3314.9,3.84528]
[1737906518987,0.16560187,3315.2,3314.9,3.84528]
[1737906519218,5.35,3315.3,3314.9,3.84528]
[1737906519402,0.16560187,3315.1,3314.9,3.84528]
[1737906519606,5.35,3315.3,3314.9,3.84528]
[1737906519928,0.16560187,3315.0,3314.9,3.84528]
[1737906520096,5.35,3315.3,3314.9,3.84528]
[1737906520298,0.16560187,3315.0,3314.9,3.84528]
[1737906520499,5.35,3315.3,3314.9,3.84528]
[1737906520699,0.16560187,3315.0,3314.9,3.84528]
[1737906520880,5.35,3315.3,3314.9,3.84528]
[1737906521083,0.16560187,3315.0,3314.9,3.84528]
[1737906521302,3.0,3315.2,3314.9,3.84528]
[1737906521802,0.16560187,3315.1,3314.9,3.84528]
[1737906524035,0.16560187,3315.1,3315.0,3.01659]
[1737906524204,3.01597,3315.7,3315.0,3.01659]
[1737906524205,3.0,3315.7,3315.4,3.01619]
[1737906524403,3.0,3315.7,3315.5,0.8213]
[1737906525035,3.0,3315.7,3315.5,3.83737]
[1737906525712,5.35,3315.8,3315.5,3.83737]
[1737906528244,5.35,3315.8,3315.5,0.8213]
[1737906528418,5.35,3315.8,3315.3,3.01624]
[1737906529141,3.0,3315.9,3315.3,3.01624]
[1737906530006,0.16070799,3315.8,3315.3,3.01624]
[1737906531123,0.8322,3315.7,3315.3,3.01624]
[1737906531720,0.16070799,3315.6,3315.3,3.01624]
[1737906535155,0.16070799,3315.6,3314.8,0.8213]
[1737906535308,3.16070799,3315.6,3314.8,3.83804]
[1737906535505,0.7008928,3315.5,3315.0,3.0165]
[1737906535909,0.16094609,3315.4,3315.0,3.0165]
[1737906536312,0.16094609,3315.4,3315.2,0.8213]
[1737906536749,3.0,3315.6,3315.2,0.8213]
[1737906536935,0.16088261,3315.3,3315.2,0.8213]
[1737906537110,0.16088261,3315.3,3315.2,3.8377]
[1737906537316,3.0,3315.6,3315.2,3.8377]
[1737906537517,0.16088261,3315.3,3315.2,3.8377]
[1737906538027,3.0,3315.6,3315.2,3.8377]
[1737906538211,0.16088261,3315.3,3315.2,3.8377]
[1737906538745,3.0,3315.6,3315.2,3.8377]
[1737906538951,0.16088261,3315.3,3315.2,3.8377]
[1737906539151,3.8322,3315.7,3315.2,3.8377]
[1737906539353,0.16088261,3315.3,3315.2,3.8377]
[1737906539541,3.8322,3315.7,3315.2,3.8377]
[1737906539735,0.16088261,3315.3,3315.2,3.8377]
[1737906540143,3.8322,3315.7,3315.2,3.8377]
[1737906540343,0.16088261,3315.3,3315.2,3.8377]
[1737906540543,3.8322,3315.7,3315.2,3.8377]
[1737906540856,0.684807,3315.6,3315.0,3.0165]
[1737906541148,6.01622,3315.5,3314.9,0.8213]
[1737906541355,0.8322,3315.4,3314.8,3.01674]
[1737906541713,0.1608879,3315.3,3314.8,3.01674]
[1737906544880,3.1608879,3315.3,3314.8,3.01674]
[1737906545832,3.56679551,3315.3,3314.8,3.01674]
[1737906546033,6.58316551,3315.3,3314.7,3.01686]
[1737906546262,8.91679551,3315.3,3314.7,3.01686]
[1737906546784,8.91679551,3315.3,3314.9,3.01667]
[1737906551479,8.91679551,3315.3,3314.7,3.01686]
[1737906551675,1.27652355,3315.2,3314.7,3.01686]
[1737906551881,0.7683,3315.1,3314.7,3.01686]
[1737906552049,0.92893394,3315.1,3314.5,3.017]
[1737906552280,0.92893394,3315.1,3314.3,3.01716]
[1737906552281,3.78501,3314.9,3314.3,3.01716]
[1737906552483,0.16062865,3314.8,3314.3,3.01716]
[1737906552982,3.16062865,3314.8,3314.3,3.01716]
[1737906553180,0.69456387,3314.7,3314.1,3.01736]
[1737906553378,3.7683,3314.6,3314.1,3.01736]
[1737906553711,0.16062865,3314.5,3314.1,3.01736]
[1737906554209,6.7855,3314.4,3313.7,3.01775]
[1737906554517,3.0,3314.2,3313.7,3.01775]
[1737906554861,0.16012065,3314.1,3313.7,3.01775]
[1737906556915,0.16012065,3314.1,3313.5,3.01795]
[1737906557481,0.16012065,3314.1,3313.7,3.01769]
[1737906557710,0.16012065,3314.1,3314.0,3.0175]
[1737906562328,0.1599936,3314.1,3314.0,3.0175]
[1737906562512,3.7683,3314.5,3314.0,3.0175]
[1737906562709,0.1599936,3314.4,3314.0,3.0175]
[1737906568632,0.1599936,3314.4,3314.1,3.01739]
[1737906586350,0.1599936,3314.4,3314.0,3.01749]
[1737906589561,0.1599936,3314.4,3314.2,3.0173]
[1737906591498,0.1599936,3314.4,3314.2,2.96924745]
[1737906591993,0.1599936,3314.4,3314.3,3.01722]
[1737906597390,0.1599936,3314.4,3314.1,0.8209]
[1737906597693,4.02813296,3314.4,3313.9,0.8209]
[1737906597901,4.02813296,3314.4,3313.1,0.5966834]
[1737906597902,3.0,3314.3,3313.1,0.5966834]
[1737906598049,3.0,3314.3,3312.4,0.8456585]
[1737906598050,0.827,3314.2,3312.7,0.8209]
[1737906598358,0.827,3313.6,3313.1,3.01827]
[1737906598593,0.15421655,3313.5,3313.1,3.01827]
[1737906600692,0.15421655,3313.5,3313.2,3.01815]
[1737906602288,0.15421655,3313.5,3313.3,0.8209]
[1737906602456,0.15421655,3313.5,3313.3,3.83902]
[1737906602651,3.0,3313.8,3313.3,3.83902]
[1737906602857,0.15421655,3313.4,3313.3,3.83902]
[1737906603154,3.0,3313.8,3313.4,3.01802]
[1737906604612,5.35,3314.1,3313.3,0.8209]
[1737906604759,5.35,3314.1,3313.7,3.01769]
[1737906604760,3.0,3314.0,3313.7,3.01769]
[1737906605091,0.15395102,3313.9,3313.8,3.81277]
[1737906605857,3.0,3314.3,3313.8,3.81277]
[1737906606090,0.15395102,3313.9,3313.8,3.81277]
[1737906606293,3.0,3314.4,3313.9,3.01757]
[1737906607600,3.0,3314.4,3313.9,3.01753]
[1737906608198,3.0,3314.4,3314.1,3.01739]
[1737906608393,3.7772,3314.5,3314.1,3.01739]
[1737906608559,3.0,3314.5,3314.1,3.01739]
[1737906610296,3.0,3314.6,3313.8,0.7951]
[1737906610474,3.0,3314.6,3314.1,3.01735]
[1737906611484,3.0,3314.6,3314.2,0.7951]
[1737906612511,3.7772,3314.7,3314.2,3.81237]
[1737906612715,3.0,3314.8,3314.3,3.01722]
[1737906613013,7.45995098,3314.8,3314.3,3.01722]
[1737906617990,7.45995098,3314.8,3314.2,0.7951]
[1737906618189,7.45995098,3314.8,3314.2,3.81241]
[1737906620036,0.14889028,3314.7,3314.2,3.81241]
[1737906628997,0.14889028,3314.7,3314.2,0.7951]
[1737906629440,0.14889028,3314.7,3314.4,3.01711]
[1737906629773,3.0,3314.8,3314.5,0.8191]
[1737906629936,0.14908734,3314.7,3314.5,0.8191]
[1737906630269,3.0,3314.8,3314.5,0.8191]
[1737906630439,0.14908734,3314.6,3314.5,0.8191]
[1737906630625,3.0,3314.8,3314.5,3.83608]
[1737906630820,0.14908734,3314.6,3314.5,3.83608]
[1737906631050,3.0,3315.1,3314.6,3.83599]
[1737906633274,3.0,3315.1,3314.8,3.01677]
[1737906633572,3.0,3315.1,3314.6,0.8191]
[1737906633573,3.0,3315.1,3314.9,3.01662]
[1737906633957,3.0,3315.1,3315.0,0.8191]
[1737906634272,3.83334,3315.5,3315.0,3.83569]
[1737906634273,3.8172,3315.5,3315.0,3.83569]
[1737906634429,4.500524,3315.5,3315.0,3.83569]
[1737906635078,0.14913524,3315.4,3315.0,3.83569]
[1737906649973,0.14913524,3315.4,3315.1,3.01648]
[1737906650813,0.14913524,3315.4,3315.2,3.01639]
[1737906650989,0.14913524,3315.4,3315.1,3.01648]
[1737906651619,0.14913524,3315.4,3315.2,3.0164]
[1737906652115,0.14913524,3315.4,3315.1,3.01648]
[1737906652669,0.14913524,3315.4,3315.0,0.8191]
[1737906652873,1.30065476,3315.4,3315.0,0.8191]
[1737906653513,1.30065476,3315.4,3315.0,3.83566]
[1737906653743,1.30065476,3315.4,3315.0,0.8191]
[1737906653924,0.8076,3315.3,3315.0,3.01658]
[1737906654277,0.14466733,3315.2,3314.9,3.0166]
[1737906654606,0.8076,3315.3,3314.9,3.0166]
[1737906654805,0.64055258,3315.2,3314.9,3.0166]
[1737906655004,0.14464063,3315.2,3314.9,3.0166]
[1737906655314,0.8076,3315.3,3314.7,0.7695]
[1737906655515,3.14464063,3315.1,3314.6,3.01693]
[1737906655679,3.0,3315.1,3314.6,3.01693]
[1737906656016,0.14457656,3315.0,3314.6,3.01693]
[1737906656212,0.76068022,3315.0,3314.5,3.01702]
[1737906656619,0.8076,3314.9,3314.5,3.01702]
[1737906657019,0.14457656,3314.8,3314.6,3.01689]
[1737906657381,0.61610366,3315.0,3314.6,3.01689]
[1737906657585,0.14457656,3314.9,3314.6,3.01689]
[1737906657791,0.14457656,3314.9,3314.5,3.01702]
[1737906658193,0.14457656,3314.9,3314.6,3.01695]
[1737906658712,0.14457656,3314.9,3314.5,3.01702]
[1737906659020,0.14457656,3314.9,3314.7,3.01686]
[1737906659545,3.0,3315.1,3314.7,3.01686]
[1737906659690,0.14457656,3314.8,3314.7,3.01686]
[1737906659890,3.0,3315.1,3314.7,3.01686]
[1737906660090,0.14457656,3314.8,3314.7,3.01686]
[1737906660291,3.0,3315.1,3314.7,3.01686]
[1737906660493,0.14457656,3314.8,3314.7,3.01686]
[1737906660803,3.0,3315.1,3314.7,3.01686]
[1737906660998,1.06033656,3315.0,3314.7,3.01686]
[1737906668323,0.14457656,3315.0,3314.7,3.01686]
[1737906668524,0.14457656,3315.0,3314.8,3.8244]
[1737906672754,0.14457656,3315.0,3314.8,0.8077]
[1737906673074,0.14457656,3315.0,3314.5,3.82472]
[1737906673374,0.14457656,3315.0,3314.5,3.01702]
[1737906673578,0.61611066,3314.9,3314.5,3.01702]
[1737906673872,0.9104979,3314.8,3314.5,3.01702]
[1737906674261,0.9104979,3314.8,3314.3,3.01715]
[1737906674466,0.9104979,3314.8,3314.4,3.01709]
[1737906676378,0.9104979,3314.8,3314.4,3.01707]
[1737906677246,1.66481876,3314.8,3314.2,3.82498]
[1737906677447,6.01687,3314.7,3314.2,3.01728]
[1737906677646,0.14453385,3314.6,3314.2,3.01728]
[1737906678946,3.7659,3314.5,3314.0,3.01747]
[1737906679582,0.14442172,3314.4,3314.0,3.01747]
[1737906680687,0.53715889,3314.4,3314.0,3.01747]
[1737906682787,0.7527,3314.3,3314.0,3.01747]
[1737906683351,0.14442172,3314.2,3314.0,3.01747]
[1737906683682,0.7527,3314.3,3314.0,3.01747]
[1737906683925,0.14442172,3314.1,3314.0,3.01747]
[1737906684147,0.7527,3314.3,3314.0,3.01747]
[1737906684325,0.14442172,3314.1,3314.0,3.01747]
[1737906684935,0.7527,3314.3,3314.0,3.01747]
[1737906685408,0.14442172,3314.2,3314.0,3.01747]
[1737906685611,0.7527,3314.3,3314.0,3.01747]
[1737906685810,0.14442172,3314.2,3314.0,3.01747]
[1737906686112,0.7527,3314.3,3314.0,3.01747]
[1737906686306,0.14442172,3314.1,3314.0,3.01747]
[1737906686811,0.7527,3314.3,3314.0,3.01747]
[1737906687013,0.14442172,3314.2,3314.0,3.01747]
[1737906687198,0.7527,3314.3,3314.0,3.01747]
[1737906687537,0.14442172,3314.2,3314.0,3.01747]
[1737906687747,0.14442172,3314.2,3313.8,3.01765]
[1737906687958,0.7527,3314.3,3313.9,3.01758]
[1737906688139,0.14442172,3314.1,3313.9,3.01758]
[1737906688444,0.14442172,3314.0,3313.9,3.01758]
[1737906688602,0.7527,3314.3,3313.9,3.01758]
[1737906688808,0.14442172,3314.2,3314.0,3.01748]
[1737906689008,3.0,3314.4,3314.0,3.01748]
[1737906689234,0.14442172,3314.3,3314.0,3.01748]
[1737906692747,0.7906,3314.5,3314.0,3.01748]
[1737906693053,0.7906,3314.5,3314.0,6.03491]
[1737906693359,0.14429888,3314.4,3314.2,3.01725]
[1737906693667,6.80412,3314.8,3314.2,3.01725]
[1737906693965,1.35976428,3314.7,3314.2,3.01725]
[1737906694549,4.37663428,3314.7,3314.2,3.01725]
[1737906696722,0.14435228,3314.7,3314.3,3.01719]
[1737906696921,0.14435228,3314.7,3314.4,0.8192]
[1737906697153,3.0,3314.8,3314.4,0.8192]
[1737906697331,0.14441635,3314.6,3314.4,0.8192]
[1737906697520,3.0,3314.8,3314.4,0.8192]
[1737906697521,3.0,3314.8,3314.5,3.01704]
[1737906698555,3.01653,3315.1,3314.5,3.01704]
[1737906698556,3.0,3315.0,3314.5,3.01704]
[1737906699620,6.01659,3315.0,3314.5,3.01704]
[1737906699913,6.696973,3315.0,3314.5,3.01704]
[1737906701156,6.696973,3315.0,3314.4,0.8192]
[1737906703246,3.01668,3314.9,3314.4,0.8192]
[1737906707870,3.01668,3314.9,3314.4,3.83631]
[1737906709793,3.0,3314.7,3314.4,0.8192]
[1737906710000,3.8119,3314.7,3314.2,3.01731]
[1737906710159,0.14453383,3314.6,3314.2,3.01731]
[1737906711607,0.14453383,3314.6,3314.3,3.0172]
[1737906711961,6.0167,3314.9,3314.3,3.0172]
[1737906712294,3.0,3315.2,3314.7,3.0168]
[1737906712477,0.14454987,3315.1,3314.8,0.7824]
[1737906718001,3.0,3315.0,3314.6,0.7824]
[1737906718294,0.14476341,3314.9,3314.5,3.01703]
[1737906719291,0.14476341,3314.9,3314.5,6.03398]
[1737906719497,0.14476341,3314.9,3314.5,3.01695]
[1737906719879,0.14476341,3314.9,3314.6,3.01689]
[1737906720094,6.01643,3315.2,3314.6,3.01689]
[1737906720263,0.14476341,3315.1,3314.6,3.01689]
[1737906720463,0.14476341,3315.1,3314.7,3.01682]
[1737906725469,3.0,3315.0,3314.5,3.01703]
[1737906725805,0.14494494,3314.9,3314.5,3.01703]
[1737906729163,0.14494494,3314.9,3314.5,6.03399]
[1737906729368,0.14494494,3314.9,3314.6,3.01695]
[1737906729789,0.14494494,3314.9,3314.5,3.01696]
[1737906729993,0.14494494,3314.9,3314.7,3.01677]
[1737906730306,0.1448702,3314.8,3314.7,3.01677]
[1737906730505,9.17824,3315.3,3314.7,3.01677]
[1737906730673,0.1448702,3315.2,3314.7,3.01677]
[1737906734421,3.1613302,3315.2,3314.5,3.01697]
[1737906734906,3.1613302,3315.2,3314.6,3.01689]
[1737906736432,3.62185588,3315.2,3314.6,3.01689]
[1737906736608,3.01659,3315.0,3314.5,3.01703]
[1737906736933,0.14490755,3314.9,3314.5,3.01703]
[1737906738577,3.47700568,3315.2,3314.5,3.01703]
[1737906738801,0.14488086,3314.8,3314.5,3.01703]
[1737906738976,3.47700568,3315.2,3314.5,3.01703]
[1737906739176,0.14488086,3314.7,3314.5,3.01703]
[1737906739378,3.47700568,3315.2,3314.5,3.01703]
[1737906739699,0.46052568,3315.2,3314.5,3.01703]
[1737906739875,3.16138086,3315.1,3314.5,3.01703]
[1737906740991,3.01674,3314.9,3314.4,0.7824]
[1737906741221,0.7729,3314.8,3314.2,3.0173]
[1737906741625,0.14486484,3314.7,3314.2,3.0173]
[1737906742926,0.14486484,3314.7,3314.1,3.01734]
[1737906743231,0.14486484,3314.7,3314.3,3.01722]
[1737906743529,0.752,3315.2,3314.6,3.01695]
[1737906743724,0.752,3315.2,3314.8,3.01677]
[1737906744331,0.752,3315.2,3314.9,3.01668]
[1737906747429,0.752,3315.2,3314.7,3.01681]
[1737906748954,5.35,3315.5,3314.8,0.7995]
[1737906749110,5.35,3315.5,3315.4,3.01622]
[1737906750410,5.34605457,3315.5,3315.4,3.699423]
[1737906752041,0.752,3315.9,3315.5,3.01613]
[1737906754951,0.14506231,3315.8,3315.5,3.01613]
[1737906755246,0.14506231,3315.8,3315.3,3.01631]
[1737906755452,0.14506231,3315.8,3315.4,3.01621]
[1737906760352,0.53633754,3315.8,3315.0,3.81606]
[1737906760552,0.752,3315.5,3315.0,3.01656]
[1737906761358,0.14548401,3315.4,3315.0,3.01656]
[1737906762921,0.14548401,3315.4,3315.2,3.0164]
[1737906768654,0.14548401,3315.4,3315.3,3.01631]
[1737906769179,5.34605457,3315.7,3315.5,3.01612]
[1737906769867,0.8228,3315.8,3315.5,3.01612]
[1737906770079,0.14529188,3315.6,3315.5,3.01612]
[1737906770285,0.8228,3315.8,3315.5,3.01612]
[1737906770441,0.14529188,3315.6,3315.5,3.01612]
[1737906770640,0.8228,3315.8,3315.5,3.01612]
[1737906770871,0.14529188,3315.6,3315.5,3.01612]
[1737906771069,0.8228,3315.8,3315.5,3.01612]
[1737906771270,0.14529188,3315.6,3315.5,3.01612]
[1737906771452,0.8228,3315.8,3315.5,3.01612]
[1737906771650,0.14529188,3315.6,3315.5,3.01612]
[1737906771855,0.8228,3315.8,3315.5,3.01612]
[1737906772379,0.14529188,3315.7,3315.5,3.01612]
[1737906772592,0.8228,3315.8,3315.5,3.01612]
[1737906772793,0.14529188,3315.6,3315.5,3.01612]
[1737906773094,0.8228,3315.8,3315.5,3.01612]
[1737906773275,0.14529188,3315.6,3315.5,3.01612]
[1737906773473,9.16885457,3316.0,3315.5,3.701673]
[1737906773676,0.14529188,3315.6,3315.5,3.01612]
[1737906774192,9.16885457,3316.0,3315.5,3.01612]
[1737906774342,0.14529188,3315.6,3315.5,3.01612]
[1737906774546,9.16885457,3316.0,3315.5,3.01612]
[1737906774776,0.14529188,3315.9,3315.5,3.01612]
[1737906778006,0.14529188,3315.9,3315.6,3.01603]
[1737906778199,0.14529188,3315.9,3315.5,3.701673]
[1737906778871,0.14529188,3315.9,3315.8,3.01586]
[1737906781969,0.8228,3316.2,3315.8,3.01586]
[1737906782188,0.14543065,3316.1,3315.8,3.01586]
[1737906784922,0.14543065,3316.1,3315.6,0.8231]
[1737906785123,0.14543065,3316.1,3315.7,3.01589]
[1737906796548,0.14543065,3316.1,3315.8,3.01586]
[1737906799253,0.14543065,3316.1,3315.6,3.83907]
[1737906801273,0.14543065,3316.1,3315.6,0.8231]
[1737906801476,0.14543065,3316.1,3315.8,3.01583]
[1737906802171,0.14543065,3316.1,3315.9,3.01575]
[1737906802725,3.0,3316.3,3315.9,3.01575]
[1737906802923,0.14549468,3316.0,3315.9,3.01575]
[1737906803144,3.0,3316.3,3315.9,3.01575]
[1737906803352,0.14549468,3316.0,3315.9,3.01575]
[1737906803533,3.0,3316.3,3315.9,3.01575]
[1737906803736,0.14553201,3316.0,3315.9,3.01575]
[1737906804269,3.0,3316.3,3315.7,6.03179]
[1737906804592,0.784,3316.2,3315.7,3.01588]
[1737906804769,0.14553201,3316.1,3315.7,6.03174]
[1737906805358,0.14553201,3316.1,3315.7,3.01586]
[1737906805687,0.14553201,3316.1,3315.8,3.01584]
[1737906808997,0.14553201,3316.1,3315.8,3.70132]
[1737906812404,0.14553201,3316.1,3315.9,3.01574]
[1737906815610,0.14553201,3316.1,3316.0,3.01568]
[1737906816114,0.8164,3316.4,3316.0,3.01568]
[1737906816784,0.14555338,3316.3,3316.0,3.01568]
[1737906823737,0.14555338,3316.3,3315.8,3.70133]
[1737906824036,0.14555338,3316.3,3315.9,3.01574]
[1737906827127,0.14555338,3316.3,3315.8,3.01579]
[1737906827345,0.14555338,3316.3,3316.0,3.01565]
[1737906845018,0.14555338,3316.3,3316.0,3.0156]
[1737906850332,0.14555338,3316.3,3316.1,3.01557]
[1737906856711,0.14555338,3316.3,3316.2,3.79849]
[1737906856933,0.7807,3317.1,3316.7,3.01502]
[1737906859257,0.7807,3317.1,3316.8,3.01495]
[1737906859929,0.14646567,3317.0,3316.8,3.01495]
[1737906861346,0.14646567,3317.0,3316.6,3.79807]
[1737906861959,0.14646567,3317.0,3316.4,3.01525]
[1737906864277,0.14646567,3317.0,3316.3,3.79837]
[1737906864411,0.14646567,3317.0,3316.5,3.0152]
[1737906865013,0.14646567,3317.0,3316.7,3.01504]
[1737906868747,0.14646567,3317.0,3316.5,3.0152]
[1737906869618,0.14646567,3317.0,3316.6,3.01513]
[1737906870020,0.14646567,3317.0,3316.5,3.0152]
[1737906870235,0.14646567,3317.0,3316.7,3.01502]
[1737906876764,0.14646567,3317.0,3316.6,0.30152]
[1737906878563,0.14646567,3317.0,3316.5,3.01515]
[1737906878864,0.14646567,3317.0,3316.6,3.01513]
[1737906884937,0.14646567,3317.0,3316.6,3.01512]
[1737906887579,0.14646567,3317.0,3316.7,0.10816507]
[1737906889186,0.14646567,3317.0,3316.6,3.01512]
[1737906890981,0.14646567,3317.0,3316.7,0.10816484]
[1737906892587,0.14646567,3317.0,3316.6,3.01512]
[1737906895691,0.14646567,3317.0,3316.7,0.1081736]
[1737906896891,0.84064624,3317.0,3316.7,0.1081736]
[1737906897052,0.7575,3316.9,3316.7,0.1081736]
[1737906897254,0.14676434,3316.8,3316.7,0.1081736]
[1737906897454,0.14676434,3316.8,3316.6,3.01512]
[1737906899808,0.90426434,3316.8,3316.7,0.10817324]
[1737906902262,0.7575,3316.7,3316.0,3.01561]
[1737906902564,3.16187301,3316.6,3315.8,3.01584]
[1737906902764,0.7716,3316.5,3315.9,3.01573]
[1737906902983,0.91835368,3316.5,3315.9,3.01573]
[1737906903180,0.91835368,3316.5,3315.8,3.01584]
[1737906903384,0.7716,3316.3,3315.8,3.01584]
[1737906903781,0.14675368,3316.2,3315.8,3.01584]
[1737906903961,0.7716,3316.3,3315.8,3.01584]
[1737906904161,0.14664701,3316.1,3315.8,3.01584]
[1737906904497,0.14664701,3316.0,3315.8,3.01584]
[1737906904694,0.14664701,3316.0,3315.6,3.01602]
[1737906904896,0.91824701,3315.9,3315.6,3.01602]
[1737906908511,0.91824701,3315.9,3315.4,3.0162]
[1737906909915,3.01587,3315.8,3315.2,3.0164]
[1737906910088,0.7716,3315.7,3315.2,3.0164]
[1737906910423,0.7716,3315.5,3315.0,3.01657]
[1737906910706,0.14581485,3315.4,3315.0,3.01657]
[1737906910907,0.14581485,3315.4,3315.1,3.01647]
[1737906911437,0.7716,3315.3,3315.1,3.01647]
[1737906912010,0.14581485,3315.2,3315.1,3.01647]
[1737906912177,0.7716,3315.3,3315.1,3.01647]
[1737906912510,0.14581485,3315.2,3315.1,3.01647]
[1737906912689,0.7716,3315.3,3315.1,3.01647]
[1737906913012,0.14571879,3315.2,3315.1,3.01647]
[1737906913218,0.7716,3315.3,3315.2,3.0164]
[1737906915679,0.7716,3315.7,3315.2,3.0164]
[1737906915916,1.150348,3315.7,3315.2,3.0164]
[1737906919517,4.150348,3315.7,3315.3,3.01631]
[1737906919879,0.14571879,3315.6,3315.3,3.01631]
[1737906920412,0.91731879,3315.6,3315.4,3.01615]
[1737906924282,0.91731879,3315.6,3315.2,3.0164]
[1737906924883,3.0,3315.4,3314.9,3.01667]
[1737906925133,0.14549469,3315.3,3314.7,3.01679]
[1737906925313,0.8129,3315.2,3314.7,3.01679]
[1737906925612,0.14556939,3315.1,3314.8,3.01676]
[1737906928501,0.14556939,3315.1,3314.9,3.01666]
[1737906928807,0.14556939,3315.1,3315.0,3.01659]
[1737906929331,0.14556939,3315.1,3315.0,4.444225]
[1737906929521,3.0,3315.4,3315.3,3.01631]
[1737906929699,3.14533989,3315.4,3315.3,3.01631]
[1737906930101,0.14533989,3315.4,3315.3,3.01631]
[1737906930634,0.14533989,3315.4,3315.3,2.96631]
[1737906930814,0.8129,3315.7,3315.3,2.96631]
[1737906931014,0.14521715,3315.4,3315.3,2.96631]
[1737906931212,0.80907583,3315.7,3315.3,2.96631]
[1737906931417,0.14521715,3315.4,3315.3,2.96631]
[1737906932037,0.80907583,3315.7,3315.3,2.96631]
[1737906932214,0.14525984,3315.4,3315.3,2.96631]
[1737906932397,0.80907583,3315.7,3315.3,2.96631]
[1737906932602,0.14525984,3315.4,3315.3,2.96631]
[1737906932799,0.80907583,3315.7,3315.3,2.96631]
[1737906933002,0.14536661,3315.4,3315.3,2.96631]
[1737906933205,0.80907583,3315.7,3315.3,2.96631]
[1737906933438,0.14536661,3315.4,3315.3,2.96631]
[1737906934039,0.80907583,3315.7,3315.3,2.96631]
[1737906934198,0.14536661,3315.4,3315.3,2.96631]
[1737906934404,0.80907583,3315.7,3315.3,2.96631]
[1737906934606,0.14536128,3315.4,3315.3,2.96631]
[1737906934850,0.80907583,3315.7,3315.3,2.96631]
[1737906935021,0.14536128,3315.4,3315.3,2.96631]
[1737906935538,0.80907583,3315.7,3315.3,2.96631]
[1737906935743,0.14536128,3315.4,3315.3,2.96631]
[1737906935942,0.80907583,3315.7,3315.3,2.96631]
[1737906936122,0.14536128,3315.4,3315.3,2.96631]
[1737906936319,0.80907583,3315.7,3315.3,2.96631]
[1737906936637,0.14536128,3315.6,3315.3,2.96631]
[1737906940414,0.14536128,3315.6,3315.4,3.01619]
[1737906945347,0.54080499,3315.6,3315.1,3.01646]
[1737906945553,0.8332,3315.5,3315.1,3.01646]
[1737906945754,0.97874803,3315.5,3315.1,3.01646]
[1737906947756,0.97874803,3315.5,3315.2,3.0164]
[1737906948657,0.97874803,3315.5,3315.1,3.01646]
[1737906948658,0.97874803,3315.5,3314.9,3.0166]
[1737906948864,1.27222517,3315.4,3314.2,3.01724]
[1737906949033,0.8332,3315.2,3314.8,3.01671]
[1737906949236,0.8332,3315.2,3314.5,3.01696]
[1737906949237,0.8332,3315.2,3314.6,3.01691]
[1737906949557,0.14543596,3315.1,3314.6,3.01691]
[1737906950121,0.14543596,3315.1,3314.3,0.7807]
[1737906950327,3.8332,3315.0,3314.4,3.01706]
[1737906950551,0.14525453,3314.9,3314.4,3.01706]